fUST/lending_fUST_20250103
["ID","MTS","AMOUNT","RATE_DAILY","PERIOD"]
[347487372,1735867430005,-897.76,0.00019178,2]
[347487373,1735867430026,-18844.88,0.00019178,2]
[347487374,1735867430048,-500.0,0.00019178,2]
[347487375,1735867430070,-505.0,0.00019178,2]
[347487376,1735867430092,-168.812428,0.00019178,2]
[347487377,1735867430114,-206.53950155,0.00019352,2]
[347487378,1735867430135,-150.0,0.00019366,2]
[347487379,1735867430156,-2087.0,0.00019366,2]
[347487380,1735867430178,-534.0,0.00019366,2]
[347487381,1735867430199,-2320.0,0.00019366,2]
[347487382,1735867430221,-394.0,0.00019366,2]
[347487383,1735867430247,-500.0,0.00019387,2]
[347487384,1735867430269,-500.0,0.00019387,2]
[347487385,1735867430293,-500.0,0.00019387,2]
[347487386,1735867430317,-500.0,0.00019387,2]
[347487387,1735867430339,-500.0,0.00019387,2]
[347487388,1735867430362,-500.0,0.00019387,2]
[347487389,1735867430388,-500.0,0.00019387,2]
[347487390,1735867430411,-474.66744102,0.00019387,2]
[347487391,1735867430434,-500.0,0.00019387,2]
[347487392,1735867430458,-500.0,0.00019387,2]
[347487393,1735867430481,-500.0,0.00019387,2]
[347487394,1735867430504,-500.0,0.00019387,2]
[347487395,1735867430528,-500.0,0.00019387,2]
[347487396,1735867430552,-500.0,0.00019387,2]
[347487397,1735867430578,-500.0,0.00019387,2]
[347487398,1735867430605,-500.0,0.00019387,2]
[347487399,1735867430633,-510.84281737,0.00019387,2]
[347487400,1735867430657,-500.0,0.00019387,2]
[347487401,1735867430681,-500.0,0.00019387,2]
[347487402,1735867430705,-500.0,0.00019387,2]
[347487403,1735867430730,-500.0,0.00019387,2]
[347487404,1735867430754,-206.31219054,0.00019387,2]
[347487405,1735867430777,-500.0,0.00019387,2]
[347487406,1735867430801,-500.0,0.00019387,2]
[347487407,1735867430828,-500.0,0.00019387,2]
[347487408,1735867430854,-500.0,0.00019387,2]
[347487409,1735867430876,-500.0,0.00019387,2]
[347487410,1735867430897,-500.0,0.00019387,2]
[347487411,1735867430920,-500.0,0.00019387,2]
[347487412,1735867430941,-500.0,0.00019387,2]
[347487413,1735867430963,-500.0,0.00019387,2]
[347487414,1735867430985,-500.0,0.00019387,2]
[347487415,1735867431007,-500.0,0.00019387,2]
[347487416,1735867431028,-500.0,0.00019387,2]
[347487417,1735867431050,-219.75491,0.00019387,2]
[347487418,1735867431073,-500.0,0.00019387,2]
[347487419,1735867431095,-500.0,0.00019387,2]
[347487420,1735867431117,-500.0,0.00019387,2]
[347487421,1735867431138,-153.0,0.00019387,2]
[347487422,1735867431159,-153.0,0.00019387,2]
[347487423,1735867431181,-153.0,0.00019387,2]
[347487424,1735867431204,-153.0,0.00019387,2]
[347487425,1735867431226,-153.0,0.00019387,2]
[347487426,1735867431248,-153.0,0.00019388,2]
[347487427,1735867431270,-153.0,0.00019388,2]
[347487428,1735867431291,-153.0,0.00019388,2]
[347487429,1735867431314,-153.0,0.00019388,2]
[347487430,1735867431459,-153.0,0.00019388,2]
[347487431,1735867431486,-153.0,0.00019388,2]
[347487432,1735867431509,-153.0,0.00019388,2]
[347487433,1735867431530,-153.0,0.00019388,2]
[347487434,1735867431554,-153.0,0.00019388,2]
[347487435,1735867431580,-153.0,0.00019391,2]
[347487436,1735867431602,-153.0,0.00019391,2]
[347487437,1735867431625,-153.0,0.00019391,2]
[347487438,1735867431647,-153.0,0.00019391,2]
[347487439,1735867431667,-153.0,0.00019391,2]
[347487440,1735867431690,-153.0,0.00019392,2]
[347487441,1735867431712,-153.0,0.00019392,2]
[347487442,1735867431734,-153.0,0.00019392,2]
[347487443,1735867431756,-153.0,0.00019392,2]
[347487444,1735867431780,-153.0,0.00019392,2]
[347487445,1735867431802,-153.0,0.00019392,2]
[347487446,1735867431826,-153.0,0.00019392,2]
[347487447,1735867431848,-153.0,0.00019392,2]
[347487448,1735867431869,-153.0,0.00019392,2]
[347487449,1735867431893,-153.0,0.00019396,2]
[347487450,1735867431914,-153.0,0.00019396,2]
[347487451,1735867431936,-153.0,0.00019396,2]
[347487452,1735867431958,-153.0,0.00019396,2]
[347487453,1735867431981,-153.0,0.00019396,2]
[347487454,1735867432008,-153.0,0.00019397,2]
[347487455,1735867432030,-153.0,0.00019397,2]
[347487456,1735867432054,-153.0,0.00019397,2]
[347487457,1735867432077,-153.0,0.00019397,2]
[347487458,1735867432099,-153.0,0.00019397,2]
[347487459,1735867432122,-153.0,0.00019397,2]
[347487460,1735867432144,-153.0,0.00019397,2]
[347487461,1735867432167,-153.0,0.00019397,2]
[347487462,1735867432189,-153.0,0.00019397,2]
[347487463,1735867432214,-153.0,0.00019401,2]
[347487464,1735867432238,-153.0,0.00019401,2]
[347487465,1735867432259,-153.0,0.00019401,2]
[347487466,1735867432280,-153.0,0.00019401,2]
[347487467,1735867432302,-153.0,0.00019401,2]
[347487468,1735867432325,-2803.88,0.00019451,3]
[347487469,1735867432347,-2803.88,0.00019451,3]
[347487470,1735867432370,-2803.88,0.00019451,3]
[347487471,1735867432393,-500.0,0.00019452,3]
[347487472,1735867432416,-580.96,0.00019452,3]
[347487473,1735867432438,-625.85,0.00019452,3]
[347487474,1735867432460,-500.0,0.00019452,3]
[347487475,1735867432482,-716.71,0.00019452,3]
[347487476,1735867432503,-500.0,0.00019452,3]
[347487477,1735867432527,-500.0,0.00019452,3]
[347487478,1735867432548,-500.0,0.00019452,3]
[347487479,1735867432572,-500.0,0.00019452,3]
[347487480,1735867432594,-500.0,0.00019452,3]
[347487481,1735867432616,-500.0,0.00019452,3]
[347487482,1735867432638,-500.0,0.00019452,3]
[347487483,1735867432661,-4681.71,0.00019452,3]
[347487484,1735867432682,-500.0,0.00019452,3]
[347487485,1735867432704,-237.22,0.00019452,3]
[347487486,1735867432726,-500.0,0.00019452,3]
[347487487,1735867432748,-500.0,0.00019452,3]
[347487488,1735867432769,-500.0,0.00019452,3]
[347487489,1735867432791,-500.0,0.00019452,3]
[347487490,1735867432813,-500.0,0.00019452,3]
[347487491,1735867432835,-500.0,0.00019452,3]
[347487492,1735867432857,-500.0,0.00019452,3]
[347487493,1735867432879,-500.0,0.00019452,3]
[347487494,1735867432901,-630.96,0.00019452,3]
[347487495,1735867432923,-500.0,0.00019452,3]
[347487496,1735867432945,-500.0,0.00019452,3]
[347487497,1735867432967,-500.0,0.00019452,3]
[347487498,1735867432989,-775.5,0.00019452,3]
[347487499,1735867433015,-500.0,0.00019452,3]
[347487500,1735867433037,-641.75,0.00019452,3]
[347487501,1735867433058,-437.35,0.00019452,3]
[347487502,1735867433080,-500.0,0.00019452,3]
[347487503,1735867433102,-448.69,0.00019452,3]
[347487504,1735867433124,-500.0,0.00019452,3]
[347487505,1735867433145,-500.0,0.00019452,3]
[347487506,1735867433167,-5830.07,0.00019452,3]
[347487507,1735867433189,-542.5,0.00019452,3]
[347487508,1735867433212,-500.0,0.00019452,3]
[347487509,1735867433237,-553.31,0.00019452,3]
[347487510,1735867433259,-2618.15,0.00019452,3]
[347487511,1735867433281,-997.31,0.00019452,3]
[347487512,1735867433303,-1429.39,0.00019452,3]
[347487513,1735867433326,-726.6,0.00019452,3]
[347487514,1735867433349,-520.3,0.00019452,3]
[347487515,1735867433370,-529.74,0.00019452,2]
[347487516,1735867433395,-500.0,0.00019452,3]
[347487517,1735867433418,-500.0,0.00019452,3]
[347487518,1735867433440,-500.0,0.00019452,3]
[347487519,1735867433463,-816.24,0.00019452,3]
[347487520,1735867433485,-500.0,0.00019452,3]
[347487521,1735867433508,-500.0,0.00019452,3]
[347487522,1735867433530,-500.0,0.00019452,3]
[347487523,1735867433552,-500.0,0.00019452,3]
[347487524,1735867433576,-572.06,0.00019452,3]
[347487525,1735867433599,-500.0,0.00019452,3]
[347487526,1735867433621,-893.48,0.00019452,3]
[347487527,1735867433644,-1510.55,0.00019452,3]
[347487528,1735867433666,-585.04,0.00019452,3]
[347487529,1735867433688,-977.32,0.00019452,3]
[347487530,1735867433709,-500.0,0.00019452,3]
[347487531,1735867433731,-500.0,0.00019452,3]
[347487532,1735867433754,-505.12,0.00019452,3]
[347487533,1735867433776,-500.0,0.00019452,3]
[347487534,1735867433799,-1508.55,0.00019452,3]
[347487535,1735867433822,-563.66,0.00019452,3]
[347487536,1735867433845,-791.25,0.00019452,3]
[347487537,1735867433867,-500.0,0.00019452,3]
[347487538,1735867433889,-500.0,0.00019452,3]
[347487539,1735867433911,-694.55,0.00019452,3]
[347487540,1735867433934,-2048.27,0.00019452,3]
[347487541,1735867433956,-500.0,0.00019452,3]
[347487542,1735867433978,-797.35,0.00019452,3]
[347487543,1735867434000,-589.24,0.00019452,3]
[347487544,1735867434024,-4001.23,0.00019452,3]
[347487545,1735867434047,-1530.22,0.00019452,3]
[347487546,1735867434069,-500.0,0.00019452,3]
[347487547,1735867434092,-500.0,0.00019452,3]
[347487548,1735867434114,-500.0,0.00019452,3]
[347487549,1735867434136,-500.0,0.00019452,3]
[347487550,1735867434159,-500.0,0.00019452,3]
[347487551,1735867434182,-782.75,0.00019452,3]
[347487552,1735867434204,-500.0,0.00019452,3]
[347487553,1735867434228,-129.37545892,0.00019452,3]
[347487611,1735867832538,-300.0,0.00016829,2]
[347487612,1735867832547,-300.0,0.00016999,2]
[347487613,1735867832556,-17117.2805435,0.00017,7]
[347487614,1735867832568,-23356.72387563,0.00017,7]
[347487615,1735867832579,-618.3670365,0.00017,7]
[347487616,1735867832591,-31111.8993573,0.00017,7]
[347487617,1735867832603,-655.77759031,0.00017,7]
[347487618,1735867832614,-1123.70777648,0.00017,7]
[347487619,1735867832626,-1893.56,0.00017,7]
[347487626,1735867832693,-618.6632773,0.00017,7]
[347487628,1735867832704,-2194.46177249,0.00017,7]
[347487631,1735867832715,-16517.36155502,0.00017,7]
[347487633,1735867832727,-5275.0,0.00017,7]
[347487635,1735867832738,-268.209553,0.00017,7]
[347487637,1735867832750,-499.563478,0.00017,7]
[347487676,1735867838524,-500.0,0.00016999,2]
[347487677,1735867838534,-306.27353121,0.00016999,2]
[347487678,1735867838543,-500.0,0.00016999,2]
[347487679,1735867838552,-215.71891977,0.00016999,2]
[347487680,1735867838562,-40059.08738356,0.00017,7]
[347487681,1735867838573,-273.4587016,0.00017,7]
[347487694,1735867840330,-2080.14952794,0.00017,7]
[347487695,1735867840342,-713.95701685,0.00017,7]
[347487698,1735867840640,-558.52309349,0.00017,7]
[347487702,1735867843490,-764.30426901,0.00017,7]
[347487704,1735867843503,-678.75858458,0.00017,7]
[347487705,1735867843511,-3780.92352993,0.00017,2]
[347487706,1735867843527,-1977.42538177,0.00017,2]
[347487707,1735867843536,-247.7931,0.00017739,2]
[347487709,1735867843546,-4245.98905261,0.00018,2]
[347487711,1735867843555,-5164.75756255,0.00018219,2]
[347487713,1735867843564,-51.75882496,0.00018567,2]
[347487725,1735867846463,-557.62684939,0.0001683,2]
[347487726,1735867846473,-368.24117504,0.00018567,2]
[347487727,1735867846482,-150.0,0.000189,2]
[347487728,1735867846491,-150.517,0.0001891,2]
[347487729,1735867846501,-169.30447416,0.00019078,2]
[347487730,1735867846510,-500.0,0.00019178,2]
[347487731,1735867846523,-532.55,0.00019178,2]
[347487732,1735867846532,-500.0,0.00019178,2]
[347487733,1735867846542,-656.99,0.00019178,2]
[347487734,1735867846552,-500.0,0.00019178,2]
[347487735,1735867846563,-500.0,0.00019178,2]
[347487736,1735867846571,-3667.79,0.00019178,2]
[347487737,1735867846581,-500.0,0.00019178,2]
[347487738,1735867846590,-573.7,0.00019178,2]
[347487739,1735867846600,-540.11472458,0.00019178,2]
[347487740,1735867846609,-500.0,0.00019178,2]
[347487741,1735867846618,-500.0,0.00019178,2]
[347487742,1735867846628,-500.0,0.00019178,2]
[347487743,1735867846637,-500.0,0.00019178,2]
[347487744,1735867846646,-500.0,0.00019178,2]
[347487745,1735867846655,-516.69,0.00019178,2]
[347487746,1735867846664,-500.0,0.00019178,2]
[347487747,1735867846673,-500.0,0.00019178,2]
[347487748,1735867846682,-500.0,0.00019178,2]
[347487749,1735867846691,-500.0,0.00019178,2]
[347487750,1735867846700,-500.0,0.00019178,2]
[347487751,1735867846709,-471.25433531,0.00019178,2]
[347487752,1735867846722,-500.0,0.00019178,2]
[347487753,1735867846731,-500.0,0.00019178,2]
[347487754,1735867846740,-500.0,0.00019178,2]
[347487755,1735867846750,-500.0,0.00019178,2]
[347487756,1735867846759,-500.0,0.00019178,2]
[347487757,1735867846768,-540.13,0.00019178,2]
[347487758,1735867846777,-15655.77338443,0.00019178,2]
[347487759,1735867846789,-558.6771946,0.00019178,2]
[347487789,1735867955326,386.677343,0.00013973,2]
[347487801,1735868266623,379.55312557,0.00025,120]
[347487803,1735868341744,3121.0,0.00025,120]
[347487805,1735868398984,996.7806903,0.00025,120]
[347487817,1735868836068,819.01,0.00014001,2]
[347487821,1735868979454,400.0,0.00013973,2]
[347487836,1735869032663,-250.0,0.00017731,2]
[347487837,1735869032674,-363.315005,0.00017927,2]
[347487838,1735869032686,-1100.04437068,0.00017927,2]
[347487839,1735869032696,-300.0,0.00017975,2]
[347487840,1735869032711,-9701.96098706,0.00017976,2]
[347487841,1735869032722,-833.69824618,0.00017976,2]
[347487842,1735869032739,-10971.07233472,0.00017976,2]
[347487843,1735869032750,-3393.26843204,0.00017976,2]
[347487844,1735869032759,-250.0,0.00018027,2]
[347487845,1735869032768,-419.794012,0.00018045,2]
[347487846,1735869032777,-3008.4315187,0.00018092,2]
[347487847,1735869032786,-1665.0847,0.00019,3]
[347487848,1735869032795,-302.84859387,0.00019,2]
[347487849,1735869032804,-302.84859387,0.00019,2]
[347487850,1735869032814,-163.98376507,0.00019078,2]
[347487851,1735869032823,-151.1,0.000191,6]
[347487852,1735869032832,-151.04583427,0.000191,5]
[347487854,1735869032842,-1448.34963018,0.00019101,2]
[347487857,1735869032863,-3716.40793237,0.00019101,2]
[347487858,1735869032873,-152.0,0.00019103,2]
[347487859,1735869032883,-3516.78833449,0.00019111,2]
[347487860,1735869032892,-150.447,0.00019128,2]
[347487861,1735869032901,-534.0,0.00019128,2]
[347487862,1735869032910,-1244.07274685,0.00019128,2]
[347487863,1735869032921,-843.92725315,0.00019128,2]
[347487864,1735869032930,-2321.0,0.00019128,2]
[347487865,1735869032939,-500.85334312,0.00019173,2]
[347487866,1735869032949,-500.0,0.00019173,2]
[347487867,1735869032959,-500.0,0.00019173,2]
[347487868,1735869032969,-343.114,0.00019177,2]
[347487869,1735869032978,-500.0,0.00019177,2]
[347487870,1735869032988,-500.0,0.00019177,2]
[347487872,1735869032997,-500.0,0.00019177,2]
[347487874,1735869033007,-500.0,0.00019177,2]
[347487876,1735869033017,-500.0,0.00019177,2]
[347487878,1735869033027,-500.0,0.00019177,2]
[347487880,1735869033036,-500.0,0.00019177,2]
[347487882,1735869033046,-619.64395946,0.00019177,2]
[347487884,1735869033056,-102.33546094,0.00019177,2]
[347487909,1735869038537,-211.25985008,0.000189,2]
[347487910,1735869038547,-397.66453906,0.00019177,2]
[347487911,1735869038557,-500.0,0.00019177,2]
[347487912,1735869038566,-500.0,0.00019177,2]
[347487914,1735869038575,-412.31158912,0.00019177,2]
[347487916,1735869038585,-500.0,0.00019177,2]
[347487917,1735869038594,-500.0,0.00019177,2]
[347487918,1735869038604,-500.0,0.00019177,2]
[347487919,1735869038613,-500.0,0.00019177,2]
[347487920,1735869038626,-500.0,0.00019177,2]
[347487921,1735869038635,-500.0,0.00019177,2]
[347487922,1735869038646,-500.0,0.00019177,2]
[347487923,1735869038656,-500.0,0.00019177,2]
[347487924,1735869038667,-500.0,0.00019177,2]
[347487925,1735869038676,-500.0,0.00019177,2]
[347487926,1735869038686,-500.0,0.00019177,2]
[347487927,1735869038696,-500.0,0.00019177,2]
[347487928,1735869038709,-500.0,0.00019177,2]
[347487929,1735869038718,-500.0,0.00019177,2]
[347487930,1735869038727,-463.99515421,0.00019177,2]
[347487931,1735869038736,-500.0,0.00019177,2]
[347487932,1735869038746,-487.57753683,0.00019177,2]
[347487933,1735869038755,-12107.70012187,0.00019178,2]
[347487934,1735869038764,-86102.31308697,0.00019178,2]
[347487978,1735869043760,-396.24,0.00018936,2]
[347487979,1735869043770,-396.24,0.00019128,2]
[347487980,1735869043779,-50595.68355584,0.00019178,2]
[347487998,1735869319320,485.0,0.00025,120]
[347488006,1735869865218,400.0,0.00013973,2]
[347488062,1735870232952,-201.19674944,0.00017765,2]
[347488064,1735870232962,-300.0,0.00018125,2]
[347488066,1735870232971,-2126.70434796,0.00018126,2]
[347488068,1735870232983,-3483.83662016,0.00018126,2]
[347488070,1735870232994,-1055.37,0.00018126,2]
[347488524,1735870238590,-18234.08903188,0.00018126,2]
[347488526,1735870238600,-209.897006,0.00018156,2]
[347488528,1735870238610,-394.0,0.00018446,2]
[347488530,1735870238620,-163.98376503,0.00019078,2]
[347488532,1735870238629,-150.0,0.00019128,2]
[347488534,1735870238638,-2088.0,0.00019128,2]
[347488536,1735870238647,-534.0,0.00019128,2]
[347488538,1735870238657,-2321.0,0.00019128,2]
[347488540,1735870238666,-4537.07793953,0.00019146,2]
[347488542,1735870238677,-437.8322314,0.00019146,2]
[347488596,1735870240639,-189.84739162,0.00019146,2]
[347488597,1735870240649,-485.85598972,0.00019173,2]
[347488598,1735870240659,-180.29662366,0.00019173,2]
[347488599,1735870240671,-321.81675916,0.00019173,2]
[347488600,1735870240681,-505.4930464,0.00019173,2]
[347488601,1735870240690,-274.491,0.00019173,2]
[347488602,1735870240700,-6053.85006094,0.00019178,2]
[347488603,1735870240709,-5106.74914179,0.00019178,2]
[347488719,1735870243859,-1257.92706627,0.00019178,2]
[347488770,1735870246820,-2534.87996598,0.00019178,2]
[347488771,1735870246833,-12027.76818293,0.00019178,2]
[347489137,1735870291672,442.5279716,0.00025,120]
[347489147,1735870591218,1000.0,0.00025,120]
[347489156,1735870924624,400.0,0.00013973,2]
[347489168,1735871228532,392.29898,0.00025,120]
[347489202,1735871431978,-300.0,0.00017823,2]
[347489203,1735871431988,-300.0,0.00018003,2]
[347489204,1735871431997,-1762.4411006,0.00018004,2]
[347489205,1735871432008,-3783.88533935,0.00018004,2]
[347489206,1735871432020,-1485.89015439,0.00018004,2]
[347489207,1735871432193,-1778.4821349,0.00018004,2]
[347489208,1735871432204,-3055.77642066,0.00018004,2]
[347489209,1735871432214,-250.0,0.0001811,2]
[347489210,1735871432223,-326.69489,0.00018131,2]
[347489211,1735871432233,-15697.3377258,0.00018159,2]
[347489212,1735871432242,-404.04424084,0.000188,2]
[347489213,1735871432252,-9764.0,0.000189,2]
[347489214,1735871432261,-154.48,0.00018966,2]
[347489215,1735871432270,-839.50861151,0.00018966,2]
[347489216,1735871432279,-150.0,0.00018966,2]
[347489217,1735871432289,-534.0,0.00018966,2]
[347489218,1735871432299,-2088.0,0.00018966,2]
[347489219,1735871432308,-2321.0,0.00018966,2]
[347489220,1735871432317,-271.1239079,0.00018986,2]
[347489221,1735871432327,-163.98376503,0.00019078,2]
[347489222,1735871432336,-5164.75756255,0.0001915,2]
[347489223,1735871432346,-504.42898113,0.00019173,2]
[347489224,1735871432355,-504.76378853,0.00019173,2]
[347489225,1735871432365,-1286.0,0.00019174,7]
[347489226,1735871432374,-508.79545912,0.00019177,5]
[347489227,1735871432383,-219.593,0.00019177,2]
[347489228,1735871432392,-293.18811768,0.00019177,2]
[347489229,1735871432401,-353.35371795,0.00019177,2]
[347489230,1735871432410,-184.70353874,0.00019177,2]
[347489231,1735871432419,-500.0,0.00019177,2]
[347489232,1735871432428,-500.0,0.00019177,2]
[347489233,1735871432437,-500.0,0.00019177,2]
[347489234,1735871432447,-500.0,0.00019177,2]
[347489235,1735871432456,-500.0,0.00019177,2]
[347489236,1735871432466,-500.0,0.00019177,2]
[347489237,1735871432476,-500.0,0.00019177,2]
[347489238,1735871432485,-500.0,0.00019177,2]
[347489239,1735871432494,-500.0,0.00019177,2]
[347489240,1735871432504,-500.0,0.00019177,2]
[347489241,1735871432513,-607.41789398,0.00019177,2]
[347489242,1735871432522,-500.0,0.00019177,2]
[347489243,1735871432531,-500.0,0.00019177,2]
[347489244,1735871432541,-234.15754377,0.00019177,2]
[347489245,1735871432550,-500.0,0.00019177,2]
[347489246,1735871432561,-500.0,0.00019177,2]
[347489247,1735871432581,-419.4190956,0.00019177,2]
[347489248,1735871432595,-500.0,0.00019177,2]
[347489249,1735871432606,-500.0,0.00019177,2]
[347489250,1735871432616,-450.97442126,0.00019177,2]
[347489251,1735871432626,-500.0,0.00019177,2]
[347489252,1735871432636,-500.0,0.00019177,2]
[347489253,1735871432647,-509.36238768,0.00019177,2]
[347489254,1735871432657,-4995.39004569,0.00019178,2]
[347489286,1735871437915,-394.0,0.00018966,2]
[347489287,1735871437924,-109.30054447,0.00018986,2]
[347489288,1735871437936,-2041.27658773,0.00018986,2]
[347489289,1735871437947,-920.97056249,0.00018986,2]
[347489291,1735871437957,-139605.36878639,0.00019178,2]
[347489293,1735871437967,-12199.56077376,0.00019178,2]
[347489294,1735871437979,-253.6156921,0.00019178,2]
[347489295,1735871437989,-502.17407012,0.00019178,2]
[347489296,1735871437998,-500.69667244,0.00019178,2]
[347489297,1735871438007,-507.29901195,0.00019178,2]
[347489298,1735871438016,-505.46941775,0.00019178,2]
[347489299,1735871438026,-502.51109989,0.00019178,2]
[347489300,1735871438035,-507.95558106,0.00019178,2]
[347489301,1735871438044,-500.0,0.00019178,2]
[347489302,1735871438053,-502.96191336,0.00019178,2]
[347489303,1735871438063,-203.2692207,0.00019178,2]
[347489304,1735871438072,-151.0,0.00019178,2]
[347489305,1735871438081,-152.266518,0.00019178,2]
[347489306,1735871438091,-500.0,0.00019178,2]
[347489307,1735871438100,-500.0,0.00019178,2]
[347489308,1735871438109,-500.0,0.00019178,2]
[347489309,1735871438120,-500.0,0.00019178,2]
[347489310,1735871438129,-500.0,0.00019178,2]
[347489311,1735871438138,-500.0,0.00019178,2]
[347489312,1735871438147,-500.0,0.00019178,2]
[347489313,1735871438157,-500.0,0.00019178,2]
[347489314,1735871438166,-500.0,0.00019178,2]
[347489315,1735871438175,-500.0,0.00019178,2]
[347489316,1735871438184,-175.75408695,0.00019178,2]
[347489317,1735871438193,-500.0,0.00019178,2]
[347489318,1735871438202,-1909.395033,0.00019178,2]
[347489319,1735871438211,-1909.395033,0.00019178,2]
[347489320,1735871438220,-1909.395033,0.00019178,2]
[347489321,1735871438230,-1909.395033,0.00019178,2]
[347489322,1735871438239,-1909.395033,0.00019178,2]
[347489323,1735871438248,-1909.395033,0.00019178,2]
[347489324,1735871438258,-1909.395033,0.00019178,2]
[347489325,1735871438267,-1909.395033,0.00019178,2]
[347489326,1735871438276,-500.0,0.00019178,2]
[347489327,1735871438285,-151.0,0.00019178,2]
[347489328,1735871438295,-153.12297,0.00019178,2]
[347489329,1735871438303,-151.0,0.00019178,2]
[347489330,1735871438314,-151.0,0.00019178,2]
[347489331,1735871438324,-151.0,0.00019178,2]
[347489332,1735871438334,-158.800107,0.00019178,2]
[347489333,1735871438343,-500.0,0.00019178,2]
[347489334,1735871438353,-500.0,0.00019178,2]
[347489335,1735871438363,-500.0,0.00019178,2]
[347489336,1735871438373,-576.07672525,0.00019178,2]
[347489337,1735871438383,-500.0,0.00019178,2]
[347489338,1735871438392,-543.98085871,0.00019178,2]
[347489339,1735871438402,-551.36232006,0.00019178,2]
[347489340,1735871438411,-503.96762112,0.00019178,2]
[347489341,1735871438421,-500.0,0.00019178,2]
[347489342,1735871438430,-504.37861173,0.00019178,2]
[347489343,1735871438441,-151.0,0.00019178,2]
[347489344,1735871438451,-500.0,0.00019178,2]
[347489345,1735871438460,-159.265094,0.00019178,2]
[347489346,1735871438470,-503.33653555,0.00019178,2]
[347489347,1735871438480,-500.0,0.00019178,2]
[347489348,1735871438489,-88.42985514,0.00019178,2]
[347489349,1735871438504,-407.23407593,0.00019178,2]
[347489392,1735871443225,-333.56606893,0.00019178,2]
[347489393,1735871443235,-500.0,0.00019178,2]
[347489394,1735871443244,-4.76124751,0.00019178,2]
[347489404,1735871446280,-495.23875249,0.00019178,2]
[347489405,1735871446291,-500.0,0.00019178,2]
[347489407,1735871446301,-500.0,0.00019178,2]
[347489409,1735871446310,-528.47,0.00019178,2]
[347489411,1735871446321,-510.46827355,0.00019178,2]
[347489412,1735871446331,-501.15071212,0.00019178,2]
[347489413,1735871446340,-500.0,0.00019178,2]
[347489414,1735871446350,-151.0,0.00019178,2]
[347489415,1735871446359,-151.0,0.00019178,2]
[347489416,1735871446369,-151.0,0.00019178,2]
[347489417,1735871446378,-152.356132,0.00019178,2]
[347489418,1735871446388,-500.0,0.00019178,2]
[347489419,1735871446398,-104.52835151,0.00019178,2]
[347489434,1735871705021,151.0,0.0001,2]
[347489435,1735871705999,309.30613618,0.00010548,2]
[347489445,1735872047152,156.0,0.00025,120]
[347489446,1735872051579,400.0,0.00013973,2]
[347489451,1735872267159,2709.10449427,0.00025,120]
[347489466,1735872584534,2000.0,0.00025,120]
[347489467,1735872596966,2212.81518594,0.00025,120]
[347489492,1735872632262,-463.2401,0.00015971,2]
[347489494,1735872632275,-423.8193786,0.00015971,2]
[347489497,1735872632286,-887.0594786,0.00016132,2]
[347489499,1735872632297,-887.0594786,0.00017279,2]
[347489501,1735872632307,-343.438108,0.00017311,2]
[347489503,1735872632318,-300.0,0.00017871,2]
[347489505,1735872632330,-3551.3545562,0.00017872,2]
[347489508,1735872632343,-21348.6454438,0.00017872,2]
[347489510,1735872632354,-500.0,0.00018158,5]